[Event "Early-Titled-Tuesday-Blitz-April-16-2024"]
[Site "Chess.com"]
[Date "2024.04.16"]
[Round "6"]
[White "amintabatabaei"]
[Black "JSPrepz"]
[Result "1-0"]
[WhiteElo "3043"]
[BlackElo "2820"]
[TimeControl "180+1"]
[EndTime "9:07:14 PDT"]
[Termination "amintabatabaei won by checkmate"]

1. Nf3 {[%clk 0:03:00.9]} 1... c5 {[%clk 0:02:59.1]} 2. g3 {[%clk 0:02:59.6]}
2... g6 {[%clk 0:02:59.2]} 3. Bg2 {[%clk 0:02:59.9]} 3... Bg7 {[%clk 0:02:59.8]}
4. O-O {[%clk 0:03:00.6]} 4... Nc6 {[%clk 0:03:00.3]} 5. d3 {[%clk 0:03:01.3]}
5... d6 {[%clk 0:02:51.5]} 6. e4 {[%clk 0:03:01.7]} 6... e6 {[%clk 0:02:50.9]}
7. a4 {[%clk 0:03:01.4]} 7... Nge7 {[%clk 0:02:51]} 8. Nfd2 {[%clk 0:02:59.1]}
8... O-O {[%clk 0:02:50.4]} 9. f4 {[%clk 0:02:59.9]} 9... Rb8 {[%clk 0:02:47.5]}
10. Kh1 {[%clk 0:03:00.6]} 10... a6 {[%clk 0:02:46.5]} 11. Nf3 {[%clk
0:02:56.1]} 11... b5 {[%clk 0:02:46.4]} 12. axb5 {[%clk 0:02:57]} 12... axb5
{[%clk 0:02:47.1]} 13. Nc3 {[%clk 0:02:57.6]} 13... b4 {[%clk 0:02:46.8]} 14.
Ne2 {[%clk 0:02:58.3]} 14... d5 {[%clk 0:02:44.2]} 15. e5 {[%clk 0:02:58.1]}
15... f6 {[%clk 0:02:37.6]} 16. exf6 {[%clk 0:02:51.2]} 16... Bxf6 {[%clk
0:02:38.5]} 17. g4 {[%clk 0:02:52.1]} 17... Bg7 {[%clk 0:02:25.1]} 18. Ng3
{[%clk 0:02:50.2]} 18... e5 {[%clk 0:01:55.6]} 19. Nxe5 {[%clk 0:02:48.3]} 19...
Nxe5 {[%clk 0:01:45.7]} 20. fxe5 {[%clk 0:02:49.2]} 20... Rxf1+ {[%clk
0:01:41.5]} 21. Qxf1 {[%clk 0:02:50.1]} 21... Bxe5 {[%clk 0:01:27.7]} 22. Bf4
{[%clk 0:02:50.4]} 22... Qd6 {[%clk 0:01:17.7]} 23. Bxe5 {[%clk 0:02:50.3]}
23... Qxe5 {[%clk 0:01:18.6]} 24. Re1 {[%clk 0:02:50.5]} 24... Qd6 {[%clk
0:01:18.9]} 25. Qe2 {[%clk 0:02:49.3]} 25... Kf8 {[%clk 0:00:55.8]} 26. Qf3+
{[%clk 0:02:48.8]} 26... Kg8 {[%clk 0:00:50.4]} 27. Qe3 {[%clk 0:02:49.4]} 27...
Nc6 {[%clk 0:00:33.9]} 28. Qg5 {[%clk 0:02:37.8]} 28... Bb7 {[%clk 0:00:22.5]}
29. Nf5 {[%clk 0:02:32]} 29... Qd7 {[%clk 0:00:19]} 30. Ne7+ {[%clk 0:02:10.6]}
30... Nxe7 {[%clk 0:00:19.2]} 31. Rxe7 {[%clk 0:02:11]} 31... Qd8 {[%clk
0:00:12.2]} 32. Qf6 {[%clk 0:02:06.5]} 32... Qf8 {[%clk 0:00:12.5]} 33. Qe6+
{[%clk 0:02:05.9]} 33... Kh8 {[%clk 0:00:12.4]} 34. Qe5+ {[%clk 0:02:05.2]}
34... Kg8 {[%clk 0:00:12.4]} 35. Rxb7 {[%clk 0:02:04.9]} 35... Rxb7 {[%clk
0:00:11.3]} 36. Bxd5+ {[%clk 0:02:04.8]} 36... Rf7 {[%clk 0:00:11.4]} 37. Qf6
{[%clk 0:02:03.2]} 37... Qe8 {[%clk 0:00:10.7]} 38. Bxf7+ {[%clk 0:01:56.4]}
38... Qxf7 {[%clk 0:00:11.6]} 39. Qxf7+ {[%clk 0:01:56.8]} 39... Kxf7 {[%clk
0:00:12.2]} 40. Kg2 {[%clk 0:01:57]} 40... Kf6 {[%clk 0:00:10.9]} 41. Kf3 {[%clk
0:01:57.3]} 41... Ke5 {[%clk 0:00:10.2]} 42. Ke3 {[%clk 0:01:57.2]} 42... Kd5
{[%clk 0:00:06.5]} 43. c3 {[%clk 0:01:57.5]} 43... h5 {[%clk 0:00:04.7]} 44.
gxh5 {[%clk 0:01:55.6]} 44... gxh5 {[%clk 0:00:05.6]} 45. cxb4 {[%clk
0:01:53.1]} 45... cxb4 {[%clk 0:00:05.6]} 46. d4 {[%clk 0:01:45.3]} 46... Kc4
{[%clk 0:00:02]} 47. h4 {[%clk 0:01:44.5]} 47... Kb3 {[%clk 0:00:01.6]} 48. d5
{[%clk 0:01:44.7]} 48... Kxb2 {[%clk 0:00:02.1]} 49. d6 {[%clk 0:01:45.6]} 49...
b3 {[%clk 0:00:02.8]} 50. d7 {[%clk 0:01:46.5]} 50... Ka1 {[%clk 0:00:01.7]} 51.
d8=Q {[%clk 0:01:46.9]} 51... b2 {[%clk 0:00:02.4]} 52. Qa5+ {[%clk 0:01:46.5]}
52... Kb1 {[%clk 0:00:02.9]} 53. Kd3 {[%clk 0:01:46.4]} 53... Kc1 {[%clk
0:00:03.5]} 54. Qe1# {[%clk 0:01:46.7]} 1-0

[Event "Early-Titled-Tuesday-Blitz-April-16-2024"]
[Site "Chess.com"]
[Date "2024.04.16"]
[Round "6"]
[White "FREZZY23"]
[Black "Trendle"]
[Result "0-1"]
[WhiteElo "2438"]
[BlackElo "2617"]
[TimeControl "180+1"]
[EndTime "9:07:17 PDT"]
[Termination "Trendle won by resignation"]

1. Nf3 {[%clk 0:03:00]} 1... d6 {[%clk 0:02:59.6]} 2. g3 {[%clk 0:03:00.6]} 2...
f5 {[%clk 0:02:58.5]} 3. Bg2 {[%clk 0:02:59.5]} 3... Nf6 {[%clk 0:02:59.4]} 4.
O-O {[%clk 0:03:00]} 4... g6 {[%clk 0:02:59.8]} 5. c4 {[%clk 0:03:00]} 5... Bg7
{[%clk 0:03:00.3]} 6. d4 {[%clk 0:02:59.8]} 6... O-O {[%clk 0:03:00.3]} 7. Nc3
{[%clk 0:03:00.4]} 7... c6 {[%clk 0:02:59.4]} 8. Re1 {[%clk 0:02:58.2]} 8... a5
{[%clk 0:02:55.8]} 9. e4 {[%clk 0:02:57.5]} 9... fxe4 {[%clk 0:02:55.1]} 10.
Nxe4 {[%clk 0:02:58.4]} 10... Nxe4 {[%clk 0:02:54.4]} 11. Rxe4 {[%clk
0:02:59.3]} 11... Bf5 {[%clk 0:02:54.1]} 12. Re1 {[%clk 0:02:59]} 12... Na6
{[%clk 0:02:51.3]} 13. Bg5 {[%clk 0:02:58.5]} 13... Rf7 {[%clk 0:02:47.1]} 14.
Qe2 {[%clk 0:02:50.1]} 14... Qd7 {[%clk 0:02:43.1]} 15. Rad1 {[%clk 0:02:46.3]}
15... Raf8 {[%clk 0:02:38.2]} 16. d5 {[%clk 0:02:38.9]} 16... Bg4 {[%clk
0:02:22.2]} 17. Rd3 {[%clk 0:02:35.1]} 17... cxd5 {[%clk 0:02:13.4]} 18. cxd5
{[%clk 0:02:34]} 18... Nb4 {[%clk 0:02:13.2]} 19. Rb3 {[%clk 0:02:30.8]} 19...
Nxd5 {[%clk 0:02:00.6]} 20. Qc4 {[%clk 0:02:29.6]} 20... Nf6 {[%clk 0:01:40.9]}
21. Nd4 {[%clk 0:01:44.1]} 21... d5 {[%clk 0:01:39.5]} 22. Qb5 {[%clk
0:01:43.8]} 22... Ne4 {[%clk 0:01:18.7]} 23. Qxd7 {[%clk 0:01:37.3]} 23... Bxd7
{[%clk 0:01:17.5]} 24. Be3 {[%clk 0:01:36.2]} 24... e5 {[%clk 0:01:02.5]} 25.
Nc2 {[%clk 0:01:09.8]} 25... Bc6 {[%clk 0:01:00.4]} 26. f3 {[%clk 0:01:03.6]}
26... Nd6 {[%clk 0:00:54.6]} 27. Bc5 {[%clk 0:01:03.5]} 27... Rd8 {[%clk
0:00:54.6]} 28. Ne3 {[%clk 0:01:00.9]} 28... d4 {[%clk 0:00:52.2]} 29. Ng4
{[%clk 0:01:01]} 29... Nc4 {[%clk 0:00:46.6]} 30. Rc1 {[%clk 0:00:58]} 30... Nd2
{[%clk 0:00:46.3]} 31. Rd3 {[%clk 0:00:58.1]} 31... Nxf3+ {[%clk 0:00:43.2]} 32.
Kh1 {[%clk 0:00:56.3]} 32... e4 {[%clk 0:00:40]} 33. Rb3 {[%clk 0:00:55.8]}
33... e3 {[%clk 0:00:35.1]} 34. Bb6 {[%clk 0:00:53.9]} 34... Re8 {[%clk
0:00:32.7]} 35. Bxa5 {[%clk 0:00:53.2]} 35... e2 {[%clk 0:00:27.5]} 36. Be1
{[%clk 0:00:53.4]} 36... Nxe1 {[%clk 0:00:25.1]} 37. Rxe1 {[%clk 0:00:53.2]}
37... Rf1+ {[%clk 0:00:21.3]} 0-1

[Event "Early-Titled-Tuesday-Blitz-April-16-2024"]
[Site "Chess.com"]
[Date "2024.04.16"]
[Round "6"]
[White "HighLawView"]
[Black "amylazy"]
[Result "0-1"]
[WhiteElo "2122"]
[BlackElo "2434"]
[TimeControl "180+1"]
[EndTime "9:07:17 PDT"]
[Termination "amylazy won by resignation"]

1. e4 {[%clk 0:03:00.9]} 1... c5 {[%clk 0:02:49.1]} 2. b4 {[%clk 0:02:58.6]}
2... cxb4 {[%clk 0:02:29]} 3. a3 {[%clk 0:02:57.8]} 3... e5 {[%clk 0:02:28.3]}
4. axb4 {[%clk 0:02:54]} 4... Bxb4 {[%clk 0:02:16.7]} 5. c3 {[%clk 0:02:53.8]}
5... Be7 {[%clk 0:02:16.5]} 6. Nf3 {[%clk 0:02:52.9]} 6... d6 {[%clk 0:02:15.9]}
7. d4 {[%clk 0:02:52.4]} 7... Nf6 {[%clk 0:02:15]} 8. dxe5 {[%clk 0:02:43.4]}
8... dxe5 {[%clk 0:02:14]} 9. Qb3 {[%clk 0:02:28.1]} 9... O-O {[%clk 0:02:10.3]}
10. Nbd2 {[%clk 0:02:22.8]} 10... Nc6 {[%clk 0:02:03]} 11. Bb5 {[%clk
0:02:21.4]} 11... Bg4 {[%clk 0:01:59.3]} 12. O-O {[%clk 0:02:12.9]} 12... Bxf3
{[%clk 0:01:58.7]} 13. Nxf3 {[%clk 0:02:10.9]} 13... Nxe4 {[%clk 0:01:58.3]} 14.
Bxc6 {[%clk 0:02:04.1]} 14... bxc6 {[%clk 0:01:57]} 15. Nxe5 {[%clk 0:02:04.1]}
15... Qc7 {[%clk 0:01:57.1]} 16. Bf4 {[%clk 0:02:02.6]} 16... Bd6 {[%clk
0:01:56.9]} 17. Rfe1 {[%clk 0:01:27.5]} 17... Bxe5 {[%clk 0:01:55.1]} 18. Bxe5
{[%clk 0:01:26.9]} 18... Qxe5 {[%clk 0:01:56]} 19. Qa4 {[%clk 0:01:23.4]} 19...
f5 {[%clk 0:01:47]} 20. Qc4+ {[%clk 0:01:00.3]} 20... Qd5 {[%clk 0:01:45.2]} 21.
Qb4 {[%clk 0:00:51.9]} 21... Rfb8 {[%clk 0:01:43.4]} 22. Qe7 {[%clk 0:00:47.6]}
22... Qf7 {[%clk 0:01:33.9]} 23. Qe5 {[%clk 0:00:44.6]} 23... Re8 {[%clk
0:01:32.5]} 24. Qf4 {[%clk 0:00:40.1]} 24... Nxc3 {[%clk 0:01:30.9]} 25. Qf3
{[%clk 0:00:32]} 25... Ne4 {[%clk 0:01:26.5]} 26. h4 {[%clk 0:00:27]} 26... h6
{[%clk 0:01:26.7]} 27. Rac1 {[%clk 0:00:23.3]} 27... Qd5 {[%clk 0:01:25.5]} 28.
Qh5 {[%clk 0:00:20.2]} 28... Nf6 {[%clk 0:01:22]} 29. Qg6 {[%clk 0:00:16.8]}
29... Rxe1+ {[%clk 0:01:21.1]} 30. Rxe1 {[%clk 0:00:17.7]} 30... Ne4 {[%clk
0:01:20.3]} 31. f3 {[%clk 0:00:16.4]} 31... Qc5+ {[%clk 0:01:19]} 32. Kh2 {[%clk
0:00:14.8]} 32... Qd6+ {[%clk 0:01:19]} 33. Qxd6 {[%clk 0:00:12.7]} 33... Nxd6
{[%clk 0:01:19.9]} 34. Re6 {[%clk 0:00:10.5]} 34... Rd8 {[%clk 0:01:20.2]} 35.
Re7 {[%clk 0:00:07]} 35... a5 {[%clk 0:01:19.4]} 0-1

[Event "Early-Titled-Tuesday-Blitz-April-16-2024"]
[Site "Chess.com"]
[Date "2024.04.16"]
[Round "6"]
[White "KnightDuta"]
[Black "bazar-wokzal"]
[Result "1-0"]
[WhiteElo "2740"]
[BlackElo "2576"]
[TimeControl "180+1"]
[EndTime "9:07:19 PDT"]
[Termination "KnightDuta won by resignation"]

1. e4 {[%clk 0:03:00.9]} 1... Nc6 {[%clk 0:02:58.9]} 2. Nf3 {[%clk 0:03:00.7]}
2... d5 {[%clk 0:02:58.7]} 3. exd5 {[%clk 0:02:56.9]} 3... Qxd5 {[%clk
0:02:59.6]} 4. Nc3 {[%clk 0:02:57.5]} 4... Qa5 {[%clk 0:02:59.7]} 5. d4 {[%clk
0:02:56.8]} 5... Bg4 {[%clk 0:02:59.6]} 6. d5 {[%clk 0:02:31.1]} 6... O-O-O
{[%clk 0:02:58.7]} 7. Bd2 {[%clk 0:02:30.6]} 7... Nb4 {[%clk 0:02:57.7]} 8. Bc4
{[%clk 0:02:18.5]} 8... Bxf3 {[%clk 0:02:57.5]} 9. gxf3 {[%clk 0:02:19.4]} 9...
Nf6 {[%clk 0:02:57.6]} 10. a3 {[%clk 0:01:52.4]} 10... Qc5 {[%clk 0:02:57.5]}
11. axb4 {[%clk 0:01:52.5]} 11... Qxc4 {[%clk 0:02:57.6]} 12. Rxa7 {[%clk
0:01:52.9]} 12... Nxd5 {[%clk 0:02:57.6]} 13. Ra8+ {[%clk 0:01:52.8]} 13... Kd7
{[%clk 0:02:57.5]} 14. Rxd8+ {[%clk 0:01:48.7]} 14... Kxd8 {[%clk 0:02:58.4]}
15. Bg5 {[%clk 0:01:05.7]} 15... c6 {[%clk 0:02:53.2]} 16. b5 {[%clk 0:00:56.6]}
16... f6 {[%clk 0:02:48.2]} 17. bxc6 {[%clk 0:00:47.9]} 17... bxc6 {[%clk
0:02:46.9]} 18. Bd2 {[%clk 0:00:38.2]} 18... e5 {[%clk 0:02:43.3]} 19. Qa1
{[%clk 0:00:37.4]} 19... Kd7 {[%clk 0:02:26.7]} 20. Qa7+ {[%clk 0:00:33.7]}
20... Ke6 {[%clk 0:02:15.1]} 21. Qa8 {[%clk 0:00:28.8]} 21... Nxc3 {[%clk
0:02:05]} 22. Bxc3 {[%clk 0:00:22.2]} 22... Kf7 {[%clk 0:02:01.3]} 23. Qb7+
{[%clk 0:00:14.8]} 23... Be7 {[%clk 0:02:00.3]} 24. Rg1 {[%clk 0:00:13.9]} 24...
g6 {[%clk 0:01:54.8]} 25. Rg4 {[%clk 0:00:14.3]} 25... Qb5 {[%clk 0:01:43.5]}
26. Rb4 {[%clk 0:00:10.3]} 26... Qxb7 {[%clk 0:01:36.5]} 27. Rxb7 {[%clk
0:00:11.2]} 27... Ke6 {[%clk 0:01:36.8]} 28. Rc7 {[%clk 0:00:11.2]} 28... Kd6
{[%clk 0:01:32.2]} 29. Ra7 {[%clk 0:00:11.4]} 29... Rb8 {[%clk 0:01:29]} 30. Ke2
{[%clk 0:00:11.1]} 30... h5 {[%clk 0:01:26.7]} 31. Kd3 {[%clk 0:00:11.1]} 31...
Rb5 {[%clk 0:01:22.3]} 32. Kc4 {[%clk 0:00:10.7]} 32... Rc5+ {[%clk 0:01:17.1]}
33. Kd3 {[%clk 0:00:10.9]} 33... Ke6 {[%clk 0:01:16.4]} 34. Rxe7+ {[%clk
0:00:09.6]} 34... Kxe7 {[%clk 0:01:15.6]} 35. Bb4 {[%clk 0:00:10.1]} 35... Kd6
{[%clk 0:01:16.2]} 36. c4 {[%clk 0:00:10.7]} 36... f5 {[%clk 0:01:15.1]} 37. Ba3
{[%clk 0:00:10.3]} 37... g5 {[%clk 0:01:12.1]} 38. Ke3 {[%clk 0:00:09.8]} 1-0

[Event "Early-Titled-Tuesday-Blitz-April-16-2024"]
[Site "Chess.com"]
[Date "2024.04.16"]
[Round "6"]
[White "XDPS"]
[Black "Grossboss19"]
[Result "0-1"]
[WhiteElo "2839"]
[BlackElo "2605"]
[TimeControl "180+1"]
[EndTime "9:07:21 PDT"]
[Termination "Grossboss19 won on time"]

1. Nf3 {[%clk 0:03:00.9]} 1... d5 {[%clk 0:02:58.9]} 2. b3 {[%clk 0:03:01.1]}
2... Nf6 {[%clk 0:02:56.2]} 3. Bb2 {[%clk 0:03:01.4]} 3... c5 {[%clk 0:02:56.8]}
4. g3 {[%clk 0:03:00.8]} 4... Nc6 {[%clk 0:02:53.3]} 5. Bg2 {[%clk 0:03:00.2]}
5... e6 {[%clk 0:02:46.3]} 6. O-O {[%clk 0:02:55.1]} 6... Bd6 {[%clk 0:02:44.6]}
7. d3 {[%clk 0:02:55.8]} 7... O-O {[%clk 0:02:44.5]} 8. Nbd2 {[%clk 0:02:56.4]}
8... a6 {[%clk 0:02:30.7]} 9. e4 {[%clk 0:02:56.1]} 9... d4 {[%clk 0:02:30.8]}
10. h3 {[%clk 0:02:40.8]} 10... e5 {[%clk 0:02:24]} 11. Nh4 {[%clk 0:02:40.7]}
11... Re8 {[%clk 0:02:21.3]} 12. Kh2 {[%clk 0:02:31.3]} 12... b5 {[%clk
0:02:13.7]} 13. a4 {[%clk 0:02:19.8]} 13... Bd7 {[%clk 0:02:09.1]} 14. Nf5
{[%clk 0:02:16.4]} 14... Bf8 {[%clk 0:02:08.3]} 15. Nf3 {[%clk 0:02:02.4]} 15...
Nb4 {[%clk 0:01:53.2]} 16. Ng1 {[%clk 0:01:48.8]} 16... Rc8 {[%clk 0:01:48.9]}
17. axb5 {[%clk 0:01:29.6]} 17... axb5 {[%clk 0:01:49.8]} 18. Ne2 {[%clk
0:01:19.2]} 18... c4 {[%clk 0:01:43.6]} 19. f4 {[%clk 0:00:56.9]} 19... cxd3
{[%clk 0:01:30.4]} 20. cxd3 {[%clk 0:00:56.8]} 20... Bxf5 {[%clk 0:01:16.3]} 21.
exf5 {[%clk 0:00:57]} 21... Nc2 {[%clk 0:01:13.6]} 22. fxe5 {[%clk 0:00:54.4]}
22... Rxe5 {[%clk 0:01:06.9]} 23. Rf4 {[%clk 0:00:35.4]} 23... Ne3 {[%clk
0:00:47.1]} 24. Qg1 {[%clk 0:00:05.5]} 24... Nxg2 {[%clk 0:00:44.2]} 25. Rxd4
{[%clk 0:00:02.4]} 25... Qe8 {[%clk 0:00:35.7]} 0-1

[Event "Early-Titled-Tuesday-Blitz-April-16-2024"]
[Site "Chess.com"]
[Date "2024.04.16"]
[Round "6"]
[White "HansOnTwitch"]
[Black "Oleksandr_Bortnyk"]
[Result "1-0"]
[WhiteElo "3159"]
[BlackElo "3040"]
[TimeControl "180+1"]
[EndTime "9:07:26 PDT"]
[Termination "HansOnTwitch won by resignation"]

1. e4 {[%clk 0:03:00.9]} 1... Nf6 {[%clk 0:03:00.5]} 2. e5 {[%clk 0:02:59.4]}
2... Nd5 {[%clk 0:03:01.1]} 3. d4 {[%clk 0:02:59.4]} 3... d6 {[%clk 0:03:01.6]}
4. c4 {[%clk 0:02:59.7]} 4... Nb6 {[%clk 0:03:01.9]} 5. exd6 {[%clk 0:02:59.7]}
5... exd6 {[%clk 0:03:02.8]} 6. Nf3 {[%clk 0:03:00.1]} 6... Be7 {[%clk
0:03:03.6]} 7. h3 {[%clk 0:02:58.6]} 7... O-O {[%clk 0:03:04]} 8. Bd3 {[%clk
0:02:58.3]} 8... Nc6 {[%clk 0:03:03.8]} 9. Nc3 {[%clk 0:02:57.7]} 9... Nb4
{[%clk 0:02:58.9]} 10. Bb1 {[%clk 0:02:57.6]} 10... Re8 {[%clk 0:02:15.4]} 11.
O-O {[%clk 0:02:57]} 11... Bf6 {[%clk 0:02:12]} 12. a3 {[%clk 0:02:42.6]} 12...
Nc6 {[%clk 0:02:11.3]} 13. b3 {[%clk 0:02:43.2]} 13... g6 {[%clk 0:01:55.2]} 14.
Ne4 {[%clk 0:02:33.7]} 14... Bg7 {[%clk 0:01:54.2]} 15. Bg5 {[%clk 0:02:32]}
15... f6 {[%clk 0:01:54]} 16. Bh4 {[%clk 0:02:24.1]} 16... Bf5 {[%clk
0:01:34.9]} 17. Re1 {[%clk 0:02:21.8]} 17... Bxe4 {[%clk 0:01:31.2]} 18. Bxe4
{[%clk 0:02:08.2]} 18... d5 {[%clk 0:01:26.9]} 19. cxd5 {[%clk 0:02:05.6]} 19...
Nxd5 {[%clk 0:01:23.5]} 20. Qc2 {[%clk 0:02:05.5]} 20... Nce7 {[%clk 0:01:17.2]}
21. Bg3 {[%clk 0:01:58.9]} 21... c6 {[%clk 0:01:16.5]} 22. Re2 {[%clk
0:01:53.1]} 22... Qd7 {[%clk 0:01:00.1]} 23. Rae1 {[%clk 0:01:52.5]} 23... Bh6
{[%clk 0:01:00.3]} 24. Bd3 {[%clk 0:01:25.7]} 24... Bf4 {[%clk 0:00:50.8]} 25.
Re6 {[%clk 0:01:25.4]} 25... Bxg3 {[%clk 0:00:47.5]} 26. fxg3 {[%clk 0:01:26.3]}
26... Kg7 {[%clk 0:00:45.2]} 27. Qe2 {[%clk 0:01:03.5]} 27... b5 {[%clk
0:00:43.7]} 28. Nh4 {[%clk 0:00:50.7]} 28... Rad8 {[%clk 0:00:31.7]} 29. Qg4
{[%clk 0:00:48.8]} 29... Nc7 {[%clk 0:00:28.4]} 30. Rxe7+ {[%clk 0:00:48.3]}
30... Rxe7 {[%clk 0:00:21.5]} 31. Rxe7+ {[%clk 0:00:47.9]} 31... Qxe7 {[%clk
0:00:22.1]} 32. Nf5+ {[%clk 0:00:48.4]} 32... Kf7 {[%clk 0:00:23]} 33. Nxe7
{[%clk 0:00:49]} 33... Kxe7 {[%clk 0:00:23.9]} 34. Qe4+ {[%clk 0:00:48.5]} 34...
Kd7 {[%clk 0:00:24]} 35. Qf3 {[%clk 0:00:45]} 35... f5 {[%clk 0:00:21.8]} 36. g4
{[%clk 0:00:45.3]} 36... Ne6 {[%clk 0:00:21]} 37. gxf5 {[%clk 0:00:45.4]} 37...
Nxd4 {[%clk 0:00:21.7]} 38. Qg4 {[%clk 0:00:43.8]} 38... Kc7 {[%clk 0:00:21.9]}
39. f6 {[%clk 0:00:42.4]} 39... c5 {[%clk 0:00:21.8]} 40. Qf4+ {[%clk
0:00:42.1]} 40... Kd7 {[%clk 0:00:22.2]} 41. Qe5 {[%clk 0:00:40.7]} 1-0

[Event "Early-Titled-Tuesday-Blitz-April-16-2024"]
[Site "Chess.com"]
[Date "2024.04.16"]
[Round "6"]
[White "HamedWafa4"]
[Black "KubaGepard"]
[Result "1-0"]
[WhiteElo "2799"]
[BlackElo "2584"]
[TimeControl "180+1"]
[EndTime "9:07:28 PDT"]
[Termination "HamedWafa4 won by resignation"]

1. d4 {[%clk 0:03:00.9]} 1... d5 {[%clk 0:02:59.1]} 2. Nf3 {[%clk 0:02:59.8]}
2... Nf6 {[%clk 0:02:59.5]} 3. c3 {[%clk 0:02:59.8]} 3... c5 {[%clk 0:02:56.8]}
4. dxc5 {[%clk 0:02:59]} 4... e6 {[%clk 0:02:51.6]} 5. b4 {[%clk 0:02:58.1]}
5... a5 {[%clk 0:02:51.1]} 6. e3 {[%clk 0:02:57.3]} 6... axb4 {[%clk 0:02:48.1]}
7. cxb4 {[%clk 0:02:58.2]} 7... b6 {[%clk 0:02:48.2]} 8. a4 {[%clk 0:02:58.8]}
8... bxc5 {[%clk 0:02:46.9]} 9. b5 {[%clk 0:02:59.4]} 9... Bb7 {[%clk
0:02:45.5]} 10. Bd3 {[%clk 0:02:58.4]} 10... Nbd7 {[%clk 0:02:42.7]} 11. Bb2
{[%clk 0:02:58.6]} 11... Bd6 {[%clk 0:02:40.8]} 12. Nbd2 {[%clk 0:02:56.8]}
12... O-O {[%clk 0:02:40.2]} 13. O-O {[%clk 0:02:55]} 13... h6 {[%clk
0:02:36.1]} 14. Re1 {[%clk 0:02:54.3]} 14... Ra7 {[%clk 0:02:32.1]} 15. e4
{[%clk 0:02:38.1]} 15... dxe4 {[%clk 0:02:09.7]} 16. Nxe4 {[%clk 0:02:38.2]}
16... Nxe4 {[%clk 0:02:05]} 17. Bxe4 {[%clk 0:02:38.6]} 17... Bxe4 {[%clk
0:02:05]} 18. Rxe4 {[%clk 0:02:39.5]} 18... Nf6 {[%clk 0:02:01.7]} 19. Bxf6
{[%clk 0:02:37.3]} 19... Qxf6 {[%clk 0:02:02.6]} 20. a5 {[%clk 0:02:26.8]} 20...
Rfa8 {[%clk 0:01:55.2]} 21. a6 {[%clk 0:02:23.9]} 21... Rb8 {[%clk 0:01:48.7]}
22. Re1 {[%clk 0:02:12.8]} 22... Qd8 {[%clk 0:01:44.9]} 23. Rb1 {[%clk
0:02:06.7]} 23... Qb6 {[%clk 0:01:43.5]} 24. Nd2 {[%clk 0:02:04]} 24... Qc7
{[%clk 0:01:13.4]} 25. g3 {[%clk 0:02:01.4]} 25... c4 {[%clk 0:01:10.9]} 26. Ne4
{[%clk 0:01:56.3]} 26... Bf8 {[%clk 0:01:05.8]} 27. Qc2 {[%clk 0:01:55.3]} 27...
Rb6 {[%clk 0:00:52]} 28. Rec1 {[%clk 0:01:53.1]} 28... Qb8 {[%clk 0:00:51.8]}
29. Qxc4 {[%clk 0:01:51.9]} 29... Raxa6 {[%clk 0:00:50.8]} 30. bxa6 {[%clk
0:01:48.6]} 30... Rxb1 {[%clk 0:00:50.3]} 31. Rxb1 {[%clk 0:01:49.4]} 31...
Qxb1+ {[%clk 0:00:48.8]} 32. Kg2 {[%clk 0:01:50.1]} 32... Qa1 {[%clk 0:00:45]}
33. h4 {[%clk 0:01:47.3]} 33... Kh7 {[%clk 0:00:42.7]} 34. Qd3 {[%clk
0:01:45.4]} 34... f5 {[%clk 0:00:41.1]} 35. Nd2 {[%clk 0:01:39.1]} 35... Bb4
{[%clk 0:00:40.1]} 36. Nf3 {[%clk 0:01:37.8]} 36... Qa2 {[%clk 0:00:37]} 37. Qb5
{[%clk 0:01:32.1]} 37... Bf8 {[%clk 0:00:26.4]} 38. Qb6 {[%clk 0:01:29]} 38...
Qa3 {[%clk 0:00:23.5]} 39. Qxe6 {[%clk 0:01:25.4]} 39... g6 {[%clk 0:00:16.3]}
40. Qf7+ {[%clk 0:01:23.4]} 40... Bg7 {[%clk 0:00:15.1]} 41. a7 {[%clk
0:01:23.8]} 41... Qa6 {[%clk 0:00:15]} 42. h5 {[%clk 0:01:22.8]} 42... gxh5
{[%clk 0:00:14.7]} 43. Qxf5+ {[%clk 0:01:23.2]} 43... Kh8 {[%clk 0:00:15.1]} 44.
Qd7 {[%clk 0:01:18.2]} 44... Kh7 {[%clk 0:00:14]} 45. Qe7 {[%clk 0:01:12.6]}
45... h4 {[%clk 0:00:13.7]} 46. Qe4+ {[%clk 0:01:12.6]} 46... Kh8 {[%clk
0:00:13.8]} 47. a8=Q+ {[%clk 0:01:13.5]} 1-0